Workbook

Sheet Tabelle1
A1: Rang | B1: Stadt | C1: Einwohneranzahl | D1: Bundesland
A2: 1 | B2: Berlin | C2: 3644820 | D2: Berlin
A3: =1+A2 -> 2 | B3: Hamburg | C3: 1841170 | D3: Hamburg
A4: =1+A3 -> 3 | B4: München | C4: 1471500 | D4: Bayern
A5: =1+A4 -> 4 | B5: Köln | C5: 1085660 | D5: Nordrhein-Westfalen
A6: =1+A5 -> 5 | B6: Frankfurt am Main | C6: 753050 | D6: Hessen
A7: =1+A6 -> 6 | B7: Stuttgart | C7: 634830 | D7: Baden-Württemberg
A8: =1+A7 -> 7 | B8: Düsseldorf | C8: 619290 | D8: Nordrhein-Westfalen
A9: =1+A8 -> 8 | B9: Leipzig | C9: 587850 | D9: Sachsen
A10: =1+A9 -> 9 | B10: Dortmund | C10: 587010 | D10: Nordrhein-Westfalen
A11: =1+A10 -> 10 | B11: Essen | C11: 583100 | D11: Nordrhein-Westfalen
A12: =1+A11 -> 11 | B12: Bremen | C12: 569350 | D12: Bremen
A13: =1+A12 -> 12 | B13: Dresden | C13: 554640 | D13: Sachsen
A14: =1+A13 -> 13 | B14: Hannover | C14: 538060 | D14: Niedersachsen
A15: =1+A14 -> 14 | B15: Nürnberg | C15: 518360 | D15: Bayern
A16: =1+A15 -> 15 | B16: Duisburg | C16: 498590 | D16: Nordrhein-Westfalen
A17: =1+A16 -> 16 | B17: Bochum | C17: 364620 | D17: Nordrhein-Westfalen
A18: =1+A17 -> 17 | B18: Wuppertal | C18: 354380 | D18: Nordrhein-Westfalen
A19: =1+A18 -> 18 | B19: Bielefeld | C19: 333780 | D19: Nordrhein-Westfalen
A20: =1+A19 -> 19 | B20: Bonn | C20: 327250 | D20: Nordrhein-Westfalen
A21: =1+A20 -> 20 | B21: Münster | C21: 314310 | D21: Nordrhein-Westfalen
A22: =1+A21 -> 21 | B22: Karlsruhe | C22: 313090 | D22: Baden-Württemberg
A23: =1+A22 -> 22 | B23: Mannheim, Universitätsstadt | C23: 309370 | D23: Baden-Württemberg
A24: =1+A23 -> 23 | B24: Augsburg | C24: 295130 | D24: Bayern
A25: =1+A24 -> 24 | B25: Wiesbaden | C25: 278340 | D25: Hessen
A26: =1+A25 -> 25 | B26: Mönchengladbach | C26: 261450 | D26: Nordrhein-Westfalen
A27: =1+A26 -> 26 | B27: Gelsenkirchen | C27: 260650 | D27: Nordrhein-Westfalen
A28: =1+A27 -> 27 | B28: Braunschweig | C28: 248290 | D28: Niedersachsen
A29: =1+A28 -> 28 | B29: Kiel | C29: 247540 | D29: Schleswig-Holstein
A30: =1+A29 -> 29 | B30: Aachen | C30: 247380 | D30: Nordrhein-Westfalen
A31: =1+A30 -> 30 | B31: Chemnitz | C31: 247230 | D31: Sachsen
A32: =1+A31 -> 31 | B32: Halle (Saale) | C32: 239250 | D32: Sachsen-Anhalt
A33: =1+A32 -> 32 | B33: Magdeburg | C33: 238690 | D33: Sachsen-Anhalt
A34: =1+A33 -> 33 | B34: Freiburg im Breisgau | C34: 230240 | D34: Baden-Württemberg
A35: =1+A34 -> 34 | B35: Krefeld | C35: 227020 | D35: Nordrhein-Westfalen
A36: =1+A35 -> 35 | B36: Lübeck | C36: 217190 | D36: Schleswig-Holstein
A37: =1+A36 -> 36 | B37: Mainz | C37: 217110 | D37: Rheinland-Pfalz
A38: =1+A37 -> 37 | B38: Erfurt | C38: 213690 | D38: Thüringen
A39: =1+A38 -> 38 | B39: Oberhausen | C39: 210820 | D39: Nordrhein-Westfalen
A40: =1+A39 -> 39 | B40: Rostock | C40: 208880 | D40: Mecklenburg-Vorpommern
A41: =1+A40 -> 40 | B41: Kassel | C41: 201580 | D41: Hessen
A42: =1+A41 -> 41 | B42: Hagen, Stadt der FernUniversität | C42: 188810 | D42: Nordrhein-Westfalen
A43: =1+A42 -> 42 | B43: Saarbrücken | C43: 180740 | D43: Saarland
A44: =1+A43 -> 43 | B44: Hamm | C44: 179110 | D44: Nordrhein-Westfalen
A45: =1+A44 -> 44 | B45: Potsdam | C45: 178080 | D45: Brandenburg
A46: =1+A45 -> 45 | B46: Ludwigshafen am Rhein | C46: 171060 | D46: Rheinland-Pfalz
A47: =1+A46 -> 46 | B47: Mülheim an der Ruhr | C47: 170880 | D47: Nordrhein-Westfalen
A48: =1+A47 -> 47 | B48: Oldenburg (Oldenburg) | C48: 168210 | D48: Niedersachsen
A49: =1+A48 -> 48 | B49: Osnabrück | C49: 164740 | D49: Niedersachsen
A50: =1+A49 -> 49 | B50: Leverkusen | C50: 163830 | D50: Nordrhein-Westfalen
A51: =1+A50 -> 50 | B51: Heidelberg | C51: 160350 | D51: Baden-Württemberg
A52: =1+A51 -> 51 | B52: Solingen, Klingenstadt | C52: 159360 | D52: Nordrhein-Westfalen
A53: =1+A52 -> 52 | B53: Darmstadt | C53: 159200 | D53: Hessen
A54: =1+A53 -> 53 | B54: Herne | C54: 156370 | D54: Nordrhein-Westfalen
A55: =1+A54 -> 54 | B55: Neuss | C55: 153790 | D55: Nordrhein-Westfalen
A56: =1+A55 -> 55 | B56: Regensburg | C56: 152610 | D56: Bayern
A57: =1+A56 -> 56 | B57: Paderborn | C57: 150580 | D57: Nordrhein-Westfalen
A58: =1+A57 -> 57 | B58: Ingolstadt | C58: 136980 | D58: Bayern
A59: =1+A58 -> 58 | B59: Offenbach am Main | C59: 128740 | D59: Hessen
A60: =1+A59 -> 59 | B60: Würzburg | C60: 127880 | D60: Bayern
A61: =1+A60 -> 60 | B61: Fürth | C61: 127740 | D61: Bayern
A62: =1+A61 -> 61 | B62: Ulm, Universitätsstadt | C62: 126320 | D62: Baden-Württemberg
A63: =1+A62 -> 62 | B63: Heilbronn | C63: 125960 | D63: Baden-Württemberg
A64: =1+A63 -> 63 | B64: Pforzheim | C64: 125540 | D64: Baden-Württemberg
A65: =1+A64 -> 64 | B65: Wolfsburg | C65: 124150 | D65: Niedersachsen
A66: =1+A65 -> 65 | B66: Göttingen | C66: 119800 | D66: Niedersachsen
A67: =1+A66 -> 66 | B67: Bottrop | C67: 117380 | D67: Nordrhein-Westfalen
A68: =1+A67 -> 67 | B68: Reutlingen | C68: 115960 | D68: Baden-Württemberg
A69: =1+A68 -> 68 | B69: Koblenz | C69: 114020 | D69: Rheinland-Pfalz
A70: =1+A69 -> 69 | B70: Bremerhaven | C70: 113630 | D70: Bremen
A71: =1+A70 -> 70 | B71: Recklinghausen | C71: 112260 | D71: Nordrhein-Westfalen
A72: =1+A71 -> 71 | B72: Bergisch Gladbach | C72: 111960 | D72: Nordrhein-Westfalen
A73: =1+A72 -> 72 | B73: Erlangen | C73: 111960 | D73: Bayern
A74: =1+A73 -> 73 | B74: Jena | C74: 111400 | D74: Thüringen
A75: =1+A74 -> 74 | B75: Remscheid | C75: 110990 | D75: Nordrhein-Westfalen
A76: =1+A75 -> 75 | B76: Trier | C76: 110630 | D76: Rheinland-Pfalz
A77: =1+A76 -> 76 | B77: Salzgitter | C77: 104940 | D77: Niedersachsen
A78: =1+A77 -> 77 | B78: Moers | C78: 103720 | D78: Nordrhein-Westfalen
A79: =1+A78 -> 78 | B79: Siegen, Universitätsstadt | C79: 102830 | D79: Nordrhein-Westfalen
A80: =1+A79 -> 79 | B80: Hildesheim | C80: 101990 | D80: Niedersachsen
A81: =1+A80 -> 80 | B81: Cottbus | C81: 100210 | D81: Brandenburg
A82: =1+A81 -> 81 | B82: Gütersloh | C82: 100190 | D82: Nordrhein-Westfalen
A83: =1+A82 -> 82 | B83: Kaiserslautern | C83: 99840 | D83: Rheinland-Pfalz
A84: =1+A83 -> 83 | B84: Witten | C84: 96560 | D84: Nordrhein-Westfalen
A85: =1+A84 -> 84 | B85: Hanau, Brüder-Grimm-Stadt | C85: 96020 | D85: Hessen
A86: =1+A85 -> 85 | B86: Schwerin | C86: 95810 | D86: Mecklenburg-Vorpommern
A87: =1+A86 -> 86 | B87: Gera | C87: 94150 | D87: Thüringen
A88: =1+A87 -> 87 | B88: Esslingen am Neckar | C88: 93540 | D88: Baden-Württemberg
A89: =1+A88 -> 88 | B89: Ludwigsburg | C89: 93490 | D89: Baden-Württemberg
A90: =1+A89 -> 89 | B90: Iserlohn | C90: 92660 | D90: Nordrhein-Westfalen
A91: =1+A90 -> 90 | B91: Düren | C91: 90730 | D91: Nordrhein-Westfalen
A92: =1+A91 -> 91 | B92: Tübingen, Universitätsstadt | C92: 90540 | D92: Baden-Württemberg
A93: =1+A92 -> 92 | B93: Zwickau | C93: 89540 | D93: Sachsen
A94: =1+A93 -> 93 | B94: Flensburg | C94: 89500 | D94: Schleswig-Holstein
A95: =1+A94 -> 94 | B95: Gießen, Universitätsstadt | C95: 88540 | D95: Hessen
A96: =1+A95 -> 95 | B96: Ratingen | C96: 87290 | D96: Nordrhein-Westfalen
A97: =1+A96 -> 96 | B97: Lünen | C97: 86440 | D97: Nordrhein-Westfalen
A98: =1+A97 -> 97 | B98: Villingen-Schwenningen | C98: 85180 | D98: Baden-Württemberg
A99: =1+A98 -> 98 | B99: Konstanz, Universitätsstadt | C99: 84760 | D99: Baden-Württemberg
A100: =1+A99 -> 99 | B100: Marl | C100: 83940 | D100: Nordrhein-Westfalen
A101: =1+A100 -> 100 | B101: Worms | C101: 83330 | D101: Rheinland-Pfalz
A102: =1+A101 -> 101 | B102: Velbert | C102: 81980 | D102: Nordrhein-Westfalen
A103: =1+A102 -> 102 | B103: Minden | C103: 81680 | D103: Nordrhein-Westfalen
A104: =1+A103 -> 103 | B104: Dessau-Roßlau | C104: 81230 | D104: Sachsen-Anhalt
A105: =1+A104 -> 104 | B105: Neumünster | C105: 79480 | D105: Schleswig-Holstein
A106: =1+A105 -> 105 | B106: Norderstedt | C106: 79150 | D106: Schleswig-Holstein
A107: =1+A106 -> 106 | B107: Delmenhorst | C107: 77600 | D107: Niedersachsen
A108: =1+A107 -> 107 | B108: Bamberg | C108: 77590 | D108: Bayern
A109: =1+A108 -> 108 | B109: Viersen | C109: 76900 | D109: Nordrhein-Westfalen
A110: =1+A109 -> 109 | B110: Marburg, Universitätsstadt | C110: 76850 | D110: Hessen
A111: =1+A110 -> 110 | B111: Wilhelmshaven | C111: 76270 | D111: Niedersachsen
A112: =1+A111 -> 111 | B112: Rheine | C112: 76100 | D112: Nordrhein-Westfalen
A113: =1+A112 -> 112 | B113: Gladbeck | C113: 75680 | D113: Nordrhein-Westfalen
A114: =1+A113 -> 113 | B114: Lüneburg | C114: 75350 | D114: Niedersachsen
A115: =1+A114 -> 114 | B115: Troisdorf | C115: 74900 | D115: Nordrhein-Westfalen
A116: =1+A115 -> 115 | B116: Dorsten | C116: 74730 | D116: Nordrhein-Westfalen
A117: =1+A116 -> 116 | B117: Bayreuth | C117: 74650 | D117: Bayern
A118: =1+A117 -> 117 | B118: Detmold | C118: 74380 | D118: Nordrhein-Westfalen
A119: =1+A118 -> 118 | B119: Arnsberg | C119: 73620 | D119: Nordrhein-Westfalen
A120: =1+A119 -> 119 | B120: Castrop-Rauxel | C120: 73420 | D120: Nordrhein-Westfalen
A121: =1+A120 -> 120 | B121: Lüdenscheid | C121: 72610 | D121: Nordrhein-Westfalen
A122: =1+A121 -> 121 | B122: Landshut | C122: 72400 | D122: Bayern
A123: =1+A122 -> 122 | B123: Brandenburg an der Havel | C123: 72120 | D123: Brandenburg
A124: =1+A123 -> 123 | B124: Bocholt | C124: 71090 | D124: Nordrhein-Westfalen
A125: =1+A124 -> 124 | B125: Aschaffenburg | C125: 70520 | D125: Bayern
A126: =1+A125 -> 125 | B126: Celle | C126: 69600 | D126: Niedersachsen
A127: =1+A126 -> 126 | B127: Kempten (Allgäu) | C127: 68900 | D127: Bayern
A128: =1+A127 -> 127 | B128: Fulda | C128: 68580 | D128: Hessen
A129: =1+A128 -> 128 | B129: Aalen | C129: 68450 | D129: Baden-Württemberg
A130: =1+A129 -> 129 | B130: Lippstadt | C130: 67900 | D130: Nordrhein-Westfalen
A131: =1+A130 -> 130 | B131: Dinslaken | C131: 67520 | D131: Nordrhein-Westfalen
A132: =1+A131 -> 131 | B132: Herford | C132: 66600 | D132: Nordrhein-Westfalen
A133: =1+A132 -> 132 | B133: Kerpen, Kolpingstadt | C133: 66200 | D133: Nordrhein-Westfalen
A134: =1+A133 -> 133 | B134: Rüsselsheim am Main | C134: 65440 | D134: Hessen
A135: =1+A134 -> 134 | B135: Weimar | C135: 65090 | D135: Thüringen
A136: =1+A135 -> 135 | B136: Plauen | C136: 64930 | D136: Sachsen
A137: =1+A136 -> 136 | B137: Sindelfingen | C137: 64850 | D137: Baden-Württemberg
A138: =1+A137 -> 137 | B138: Neuwied | C138: 64570 | D138: Rheinland-Pfalz
A139: =1+A138 -> 138 | B139: Dormagen | C139: 64330 | D139: Nordrhein-Westfalen
A140: =1+A139 -> 139 | B140: Neubrandenburg | C140: 64080 | D140: Mecklenburg-Vorpommern
A141: =1+A140 -> 140 | B141: Grevenbroich | C141: 63620 | D141: Nordrhein-Westfalen
A142: =1+A141 -> 141 | B142: Rosenheim | C142: 63320 | D142: Bayern
A143: =1+A142 -> 142 | B143: Herten | C143: 61790 | D143: Nordrhein-Westfalen
A144: =1+A143 -> 143 | B144: Bergheim | C144: 61610 | D144: Nordrhein-Westfalen
A145: =1+A144 -> 144 | B145: Schwäbisch Gmünd | C145: 61180 | D145: Baden-Württemberg
A146: =1+A145 -> 145 | B146: Friedrichshafen | C146: 60860 | D146: Baden-Württemberg
A147: =1+A146 -> 146 | B147: Garbsen | C147: 60750 | D147: Niedersachsen
A148: =1+A147 -> 147 | B148: Wesel | C148: 60350 | D148: Nordrhein-Westfalen
A149: =1+A148 -> 148 | B149: Hürth | C149: 60180 | D149: Nordrhein-Westfalen
A150: =1+A149 -> 149 | B150: Offenburg | C150: 59640 | D150: Baden-Württemberg
A151: =1+A150 -> 150 | B151: Stralsund | C151: 59420 | D151: Mecklenburg-Vorpommern
A152: =1+A151 -> 151 | B152: Greifswald | C152: 59380 | D152: Mecklenburg-Vorpommern
A153: =1+A152 -> 152 | B153: Langenfeld (Rheinland) | C153: 58920 | D153: Nordrhein-Westfalen
A154: =1+A153 -> 153 | B154: Neu-Ulm, GKSt | C154: 58700 | D154: Bayern
A155: =1+A154 -> 154 | B155: Unna | C155: 58630 | D155: Nordrhein-Westfalen
A156: =1+A155 -> 155 | B156: Euskirchen | C156: 57970 | D156: Nordrhein-Westfalen
A157: =1+A156 -> 156 | B157: Frankfurt (Oder) | C157: 57870 | D157: Brandenburg
A158: =1+A157 -> 157 | B158: Göppingen | C158: 57550 | D158: Baden-Württemberg
A159: =1+A158 -> 158 | B159: Hameln | C159: 57510 | D159: Niedersachsen
A160: =1+A159 -> 159 | B160: Stolberg (Rhld.), Kupferstadt | C160: 56790 | D160: Nordrhein-Westfalen
A161: =1+A160 -> 160 | B161: Eschweiler | C161: 56380 | D161: Nordrhein-Westfalen
A162: =1+A161 -> 161 | B162: Görlitz | C162: 56320 | D162: Sachsen
A163: =1+A162 -> 162 | B163: Meerbusch | C163: 56180 | D163: Nordrhein-Westfalen
A164: =1+A163 -> 163 | B164: Hilden | C164: 55760 | D164: Nordrhein-Westfalen
A165: =1+A164 -> 164 | B165: Sankt Augustin | C165: 55760 | D165: Nordrhein-Westfalen
A166: =1+A165 -> 165 | B166: Waiblingen | C166: 55440 | D166: Baden-Württemberg
A167: =1+A166 -> 166 | B167: Baden-Baden | C167: 55120 | D167: Baden-Württemberg
A168: =1+A167 -> 167 | B168: Hattingen | C168: 54560 | D168: Nordrhein-Westfalen
A169: =1+A168 -> 168 | B169: Lingen (Ems) | C169: 54420 | D169: Niedersachsen
A170: =1+A169 -> 169 | B170: Langenhagen | C170: 54240 | D170: Niedersachsen
A171: =1+A170 -> 170 | B171: Bad Homburg v. d. Höhe | C171: 54240 | D171: Hessen
A172: =1+A171 -> 171 | B172: Bad Salzuflen | C172: 54120 | D172: Nordrhein-Westfalen
A173: =1+A172 -> 172 | B173: Pulheim | C173: 54070 | D173: Nordrhein-Westfalen
A174: =1+A173 -> 173 | B174: Schweinfurt | C174: 54030 | D174: Bayern
A175: =1+A174 -> 174 | B175: Nordhorn | C175: 53400 | D175: Niedersachsen
A176: =1+A175 -> 175 | B176: Neustadt an der Weinstraße | C176: 53140 | D176: Rheinland-Pfalz
A177: =1+A176 -> 176 | B177: Wetzlar | C177: 52950 | D177: Hessen
A178: =1+A177 -> 177 | B178: Menden (Sauerland) | C178: 52910 | D178: Nordrhein-Westfalen
A179: =1+A178 -> 178 | B179: Ahlen | C179: 52580 | D179: Nordrhein-Westfalen
A180: =1+A179 -> 179 | B180: Frechen | C180: 52470 | D180: Nordrhein-Westfalen
A181: =1+A180 -> 180 | B181: Passau | C181: 52460 | D181: Bayern
A182: =1+A181 -> 181 | B182: Wolfenbüttel | C182: 52170 | D182: Niedersachsen
A183: =1+A182 -> 182 | B183: Ibbenbüren | C183: 51900 | D183: Nordrhein-Westfalen
A184: =1+A183 -> 183 | B184: Kleve | C184: 51840 | D184: Nordrhein-Westfalen
A185: =1+A184 -> 184 | B185: Bad Kreuznach | C185: 50940 | D185: Rheinland-Pfalz
A186: =1+A185 -> 185 | B186: Goslar | C186: 50750 | D186: Niedersachsen
A187: =1+A186 -> 186 | B187: Gummersbach | C187: 50680 | D187: Nordrhein-Westfalen
A188: =1+A187 -> 187 | B188: Ravensburg | C188: 50620 | D188: Baden-Württemberg
A189: =1+A188 -> 188 | B189: Willich | C189: 50590 | D189: Nordrhein-Westfalen
A190: =1+A189 -> 189 | B190: Speyer | C190: 50370 | D190: Rheinland-Pfalz
A191: =1+A190 -> 190 | B191: Emden | C191: 50190 | D191: Niedersachsen
A192: =1+A191 -> 191 | B192: Böblingen | C192: 50150 | D192: Baden-Württemberg
A193: =1+A192 -> 192 | B193: Peine | C193: 49950 | D193: Niedersachsen
A194: =1+A193 -> 193 | B194: Elmshorn | C194: 49880 | D194: Schleswig-Holstein
A195: =1+A194 -> 194 | B195: Erftstadt | C195: 49800 | D195: Nordrhein-Westfalen
A196: =1+A195 -> 195 | B196: Rastatt | C196: 49780 | D196: Baden-Württemberg
A197: =1+A196 -> 196 | B197: Heidenheim an der Brenz | C197: 49520 | D197: Baden-Württemberg
A198: =1+A197 -> 197 | B198: Lörrach | C198: 49340 | D198: Baden-Württemberg
A199: =1+A198 -> 198 | B199: Leonberg | C199: 48730 | D199: Baden-Württemberg
A200: =1+A199 -> 199 | B200: Bergkamen | C200: 48720 | D200: Nordrhein-Westfalen
... 1 more rows
